bitfinex/quotes_SOLUSD_20250315
["timestamp","ask_amount","ask_price","bid_price","bid_amount"]
[1742040572971,0.03,133.72,133.71,27.17546376]
[1742040573470,0.03,133.72,133.71,6.36]
[1742040575802,13.36666376,133.72,133.71,6.36]
[1742040576172,0.03,133.72,133.71,6.36]
[1742040576613,13.36666376,133.72,133.71,6.36]
[1742040576898,20.84496376,133.72,133.71,6.36]
[1742040577396,20.98712533,133.72,133.71,6.36]
[1742040577601,0.28432314,133.71,133.69,0.063]
[1742040577902,13.6209869,133.71,133.69,6.423]
[1742040578579,13.33666376,133.71,133.69,6.423]
[1742040578779,13.33666376,133.7,133.69,0.063]
[1742040578980,20.81606376,133.7,133.69,0.063]
[1742040580800,39.75003576,133.7,133.69,0.063]
[1742040582001,21.1003869,133.7,133.69,0.063]
[1742040582615,13.6209869,133.7,133.69,0.063]
[1742040582905,13.33666376,133.71,133.69,0.063]
[1742040584685,13.6509869,133.72,133.69,0.063]
[1742040585189,13.36666376,133.72,133.69,0.063]
[1742040594584,13.33666376,133.7,133.69,0.063]
[1742040595109,13.33666376,133.71,133.69,0.063]
[1742040598323,13.6509869,133.72,133.69,0.063]
[1742040599319,13.36666376,133.72,133.69,0.063]
[1742040600590,0.03,133.72,133.69,13.39966376]
[1742040601114,0.03,133.72,133.7,13.33666376]
[1742040601695,0.03,133.72,133.71,7.4788]
[1742040601893,0.03,133.72,133.71,20.81546376]
[1742040602105,0.03,133.72,133.71,22.40376376]
[1742040603016,0.03,133.72,133.71,9.0671]
[1742040604117,0.03,133.72,133.71,22.40376376]
[1742040605720,13.01666376,133.78,133.71,9.0671]
[1742040605920,13.01666376,133.78,133.72,19.69666376]
[1742040606419,0.03,133.79,133.74,13.33666376]
[1742040606603,13.36666376,133.79,133.74,13.33666376]
[1742040607315,0.03,133.79,133.76,13.33666376]
[1742040607621,0.03,133.79,133.77,6.36]
[1742040607816,0.03,133.79,133.74,13.33666376]
[1742040607817,0.03,133.79,133.78,6.36]
[1742040609218,13.36666376,133.79,133.78,6.36]
[1742040609425,0.03,133.79,133.78,6.36]
[1742040612426,0.03,133.79,133.78,13.8349]
[1742040612619,0.03,133.79,133.78,6.36]
[1742040615929,0.03,133.79,133.78,13.8349]
[1742040622134,0.03,133.79,133.78,27.17156376]
[1742040622332,0.03,133.79,133.78,27.23456376]
[1742040623434,0.03,133.79,133.78,13.8979]
[1742040623636,0.03,133.79,133.78,27.23456376]
[1742040624341,0.03,133.79,133.78,13.8979]
[1742040624937,0.03,133.79,133.78,27.23456376]
[1742040625516,0.03,133.79,133.78,13.8979]
[1742040628843,0.03,133.79,133.78,27.23456376]
[1742040630248,0.03,133.82,133.78,45.92186376]
[1742040630441,0.03,133.82,133.81,13.33666376]
[1742040631245,0.03,133.82,133.8,13.33666376]
[1742040631554,0.03,133.82,133.78,100.45966376]
[1742040633151,0.03,133.82,133.79,13.33666376]
[1742040635033,0.03,133.82,133.78,100.45966376]
[1742040635234,0.03,133.82,133.79,6.36]
[1742040638664,0.03,133.82,133.79,19.69666376]
[1742040642576,0.03,133.82,133.8,13.33666376]
[1742040642774,0.03,133.82,133.81,31.98631262]
[1742040642975,0.03,133.82,133.81,112.68631262]
[1742040643166,0.03,133.82,133.81,113.18631262]
[1742040643372,0.03,133.82,133.81,112.68631262]
[1742040644889,0.03,133.82,133.81,113.18631262]
[1742040645761,0.03,133.82,133.81,113.47063576]
[1742040645985,0.03,133.82,133.81,114.59092504]
[1742040646286,0.03,133.84,133.82,18.64964886]
[1742040646583,0.03,133.84,133.83,13.33666376]
[1742040647283,0.03,133.84,133.83,85.6172908]
[1742040647481,0.03,133.84,133.83,32.27063576]
[1742040647679,0.03,133.84,133.83,31.98631262]
[1742040647981,0.03,133.84,133.83,112.68631262]
[1742040649387,0.03,133.84,133.83,166.3172908]
[1742040652695,0.03,133.84,133.83,112.97063576]
[1742040652883,0.03,133.84,133.83,112.68631262]
[1742040653277,0.03,133.84,133.83,119.04631262]
[1742040658181,0.03,133.84,133.83,119.18847419]
[1742040658381,0.03,133.84,133.83,119.33063576]
[1742040658800,0.03,133.84,133.83,172.6772908]
[1742040659323,0.03,133.84,133.83,119.33063576]
[1742040659514,0.03,133.84,133.83,119.04631262]
[1742040665522,0.03,133.84,133.83,105.70964886]
[1742040665721,0.03,133.84,133.83,119.04631262]
[1742040666144,0.03,133.84,133.83,119.18847419]
[1742040666829,0.03,133.84,133.83,174.3092908]
[1742040667349,0.03,133.84,133.83,120.96263576]
[1742040667824,0.03,133.84,133.83,174.3092908]
[1742040668136,0.03,133.84,133.83,174.8092908]
[1742040669126,0.03,133.86,133.84,18.933972]
[1742040669341,0.03,133.86,133.85,40.01374807]
[1742040670039,0.03,133.86,133.85,352.01374807]
[1742040670228,0.03,133.86,133.85,350.89377419]
[1742040672747,0.03,133.86,133.85,351.03593576]
[1742040673547,0.03,133.86,133.85,350.53593576]
[1742040674049,0.03,133.86,133.85,32.27063576]
[1742040674226,0.03,133.86,133.85,112.97063576]
[1742040677053,0.03,133.86,133.85,424.97063576]
[1742040678752,0.03,133.86,133.85,112.97063576]
[1742040679251,0.03,133.86,133.85,310.53063576]
[1742040681752,0.03,133.86,133.85,622.53063576]
[1742040682350,0.03,133.86,133.85,310.53063576]
[1742040683049,0.03,133.86,133.85,318.00163576]
[1742040683949,0.03,133.86,133.85,317.71731262]
[1742040684253,0.03,133.86,133.85,324.07731262]
[1742040687356,0.03,133.86,133.85,310.74064886]
[1742040687655,0.03,133.86,133.85,324.07731262]
[1742040689556,0.03,133.86,133.85,317.71731262]
[1742040689759,0.03,133.86,133.85,324.07731262]
[1742040690556,0.03,133.86,133.85,243.37731262]
[1742040690760,0.03,133.86,133.85,222.56964886]
[1742040690965,0.03,133.86,133.85,235.90631262]
[1742040691949,0.03,133.86,133.85,243.37731262]
[1742040692643,0.03,133.86,133.85,243.51947419]
[1742040694152,0.03,133.86,133.85,222.56964886]
[1742040694351,0.03,133.86,133.85,230.04064886]
[1742040695477,0.03,133.86,133.85,222.56964886]
[1742040695641,0.03,133.86,133.85,197.56]
[1742040695846,0.03,133.86,133.85,222.56964886]
[1742040696576,0.03,133.86,133.85,222.58964886]
[1742040698458,0.03,133.86,133.85,25.02964886]
[1742040700575,0.03,133.86,133.85,32.50064886]
[1742040700763,14.96606376,133.86,133.84,0.063]
[1742040700969,13.33666376,133.85,133.84,0.063]
[1742040701168,13.33666376,133.85,133.84,25.09264886]
[1742040701851,13.33666376,133.85,133.84,6.443]
[1742040702054,20.80766376,133.85,133.84,6.443]
[1742040702972,20.80766376,133.85,133.84,0.063]
[1742040703862,13.33666376,133.85,133.84,0.063]
[1742040704980,14.96606376,133.86,133.84,0.063]
[1742040705156,13.33666376,133.85,133.84,0.063]
[1742040706070,20.80766376,133.85,133.84,0.063]
[1742040706877,74.1543188,133.85,133.84,0.063]
[1742040707046,20.80766376,133.85,133.84,0.063]
[1742040708356,7.471,133.85,133.84,0.063]
[1742040708556,13.33666376,133.85,133.84,0.063]
[1742040716482,20.80766376,133.85,133.84,0.063]
[1742040718363,20.83766376,133.85,133.84,0.063]
[1742040718780,74.1843188,133.85,133.84,0.063]
[1742040719088,20.83766376,133.85,133.84,0.063]
[1742040721078,0.14216157,133.84,133.81,0.063]
[1742040721276,13.33666376,133.82,133.81,0.063]
[1742040723185,20.80936376,133.82,133.81,0.063]
[1742040724374,13.33666376,133.82,133.81,0.063]
[1742040724577,13.33666376,133.84,133.81,0.063]
[1742040726280,13.33666376,133.83,133.81,0.063]
[1742040726474,13.33666376,133.84,133.81,18.71264886]
[1742040726695,0.03,133.85,133.81,18.71264886]
[1742040727299,13.36666376,133.85,133.83,18.64964886]
[1742040729900,0.03,133.85,133.83,7.4721]
[1742040730085,0.03,133.85,133.84,18.64964886]
[1742040731293,0.03,133.85,133.84,7.4716]
[1742040732598,0.03,133.85,133.84,39.74223576]
[1742040732986,0.03,133.85,133.84,26.12124886]
[1742040733576,0.03,133.85,133.84,32.52124886]
[1742040735688,0.03,133.85,133.84,45.85791262]
[1742040738702,0.03,133.85,133.84,25.04964886]
[1742040738903,13.36666376,133.85,133.81,197.723]
[1742040739206,13.33666376,133.84,133.82,25.04964886]
[1742040740499,13.36666376,133.85,133.82,25.04964886]
[1742040740685,13.33666376,133.84,133.83,6.4]
[1742040741189,13.36666376,133.85,133.83,6.4]
[1742040749238,13.36666376,133.85,133.81,7.536]
[1742040749413,13.36666376,133.85,133.83,6.4]
[1742040753428,13.33666376,133.84,133.83,6.4]
[1742040753598,20.80826376,133.84,133.83,6.4]
[1742040754115,20.80826376,133.84,133.81,6.443]
[1742040754317,13.33666376,133.82,133.81,0.063]
[1742040754620,13.33666376,133.82,133.81,6.443]
[1742040754801,7.4716,133.84,133.81,6.443]
[1742040754802,13.33666376,133.83,133.81,6.443]
[1742040755427,13.33666376,133.83,133.81,0.063]
[1742040755609,13.33666376,133.82,133.81,6.443]
[1742040756011,13.33666376,133.82,133.81,0.063]
[1742040756624,20.80936376,133.82,133.81,0.063]
[1742040763731,20.80936376,133.82,133.81,0.063]
[1742040780033,13.33666376,133.83,133.81,0.063]
[1742040780648,13.33666376,133.82,133.81,0.063]
[1742040787161,20.80936376,133.82,133.81,0.063]
[1742040788459,13.33666376,133.82,133.81,0.063]
[1742040789264,13.33666376,133.83,133.81,0.063]
[1742040790348,20.03,133.84,133.81,0.063]
[1742040790556,13.33666376,133.83,133.81,0.063]
[1742040795173,13.36666376,133.84,133.81,0.063]
[1742040795467,0.03,133.84,133.81,0.063]
[1742040795843,0.03,133.84,133.81,18.71264886]
[1742040796043,0.03,133.84,133.81,32.04931262]
[1742040797168,0.03,133.84,133.82,19.79656376]
[1742040797372,0.03,133.84,133.83,6.36]
[1742040797753,0.03,133.84,133.83,13.8321]
[1742040799360,0.03,133.84,133.83,6.36]
[1742040799361,13.36666376,133.84,133.83,6.36]
[1742040799556,13.36666376,133.84,133.81,0.063]
[1742040799763,13.33666376,133.83,133.82,6.36]
[1742040800468,13.33666376,133.83,133.81,0.063]
[1742040800667,13.36666376,133.84,133.82,6.36]
[1742040802662,13.36666376,133.84,133.83,0.063]
[1742040804986,0.03,133.84,133.83,0.063]
[1742040822574,0.03,133.84,133.83,18.71264886]
[1742040822764,0.03,133.84,133.83,32.04931262]
[1742040824690,0.03,133.84,133.83,39.52141262]
[1742040826694,0.03,133.84,133.83,26.18474886]
[1742040828579,0.03,133.84,133.83,39.52141262]
[1742040829794,0.03,133.84,133.83,7.5351]
[1742040829994,0.03,133.84,133.83,26.18474886]
[1742040836801,0.03,133.84,133.83,39.52141262]
[1742040837099,0.03,133.84,133.83,26.18474886]
[1742040838506,0.03,133.84,133.83,7.5351]
[1742040838693,0.03,133.84,133.83,26.18474886]
[1742040840207,0.03,133.84,133.83,7.5351]
[1742040840397,0.03,133.84,133.83,0.063]
[1742040841009,0.03,133.84,133.83,6.403]
[1742040842103,0.03,133.84,133.83,0.063]
[1742040842311,0.03,133.84,133.83,6.403]
[1742040844514,0.03,133.84,133.83,13.8751]
[1742040853429,0.03,133.84,133.83,45.86141262]
[1742040854201,0.03,133.84,133.83,32.52474886]
[1742040854622,0.03,133.84,133.83,13.8751]
[1742040865921,0.03,133.84,133.83,45.86141262]
[1742040868843,0.03,133.84,133.83,32.52474886]
[1742040870320,0.03,133.84,133.83,13.8751]
[1742040877348,0.03,133.84,133.83,6.403]
[1742040877725,13.36666376,133.84,133.83,6.403]
[1742040878145,13.36666376,133.84,133.83,0.063]
[1742040878644,20.83826376,133.84,133.83,0.063]
[1742040883270,13.36666376,133.84,133.83,0.063]
[1742040884422,0.03,133.84,133.83,0.063]
[1742040885156,0.03,133.84,133.83,13.39966376]
[1742040885663,0.03,133.84,133.83,0.063]
[1742040886736,0.03,133.84,133.83,7.5351]
[1742040888546,0.03,133.84,133.83,0.063]
[1742040889364,0.03,133.84,133.83,6.403]
[1742040890473,13.36666376,133.84,133.83,6.403]
[1742040893876,13.36666376,133.84,133.83,0.063]
[1742040896386,20.83826376,133.84,133.83,0.063]
[1742040898676,74.46924194,133.84,133.83,0.063]
[1742040899473,21.1225869,133.84,133.83,0.063]
[1742040899781,7.5016,133.84,133.83,0.063]
[1742040899954,20.83826376,133.84,133.83,0.063]
[1742040900475,13.36666376,133.84,133.83,0.063]
[1742040903160,13.36666376,133.84,133.83,6.423]
[1742040903161,0.03,133.84,133.83,6.423]
[1742040903578,13.36666376,133.84,133.83,6.423]
[1742040903777,0.03,133.84,133.83,6.423]
[1742040904368,13.36666376,133.84,133.83,6.423]
[1742040905484,40.83826376,133.84,133.83,6.423]
[1742040905683,94.46924194,133.84,133.83,0.063]
[1742040908592,41.1225869,133.84,133.83,0.063]
[1742040909175,40.83826376,133.84,133.83,0.063]
[1742040910690,20.03,133.84,133.83,0.063]
[1742040910903,40.83826376,133.84,133.83,0.063]
[1742040921083,94.46924194,133.84,133.83,0.063]
[1742040922299,41.1225869,133.84,133.83,0.063]
[1742040924989,40.83826376,133.84,133.83,0.063]
[1742040926610,33.36666376,133.84,133.83,0.063]
[1742040931195,0.03,133.84,133.83,0.063]
[1742040932916,13.36666376,133.84,133.83,0.063]
[1742040933421,0.03,133.84,133.83,0.063]
[1742040938717,13.36666376,133.84,133.83,0.063]
[1742040939196,0.03,133.84,133.83,0.063]
[1742040939391,13.36666376,133.84,133.83,0.063]
[1742040939597,0.03,133.84,133.83,0.063]
[1742040943796,0.03,133.84,133.83,19.77526376]
[1742040944219,0.03,133.84,133.83,27.24736376]
[1742040944629,0.03,133.84,133.83,47.52721262]
[1742040944802,0.0001,133.84,133.83,47.52721262]
[1742040945203,0.0001,133.84,133.83,47.81153576]
[1742040945907,0.0001,133.84,133.83,47.52721262]
[1742040949726,0.0001,133.84,133.83,15.5409]
[1742040949931,0.0001,133.84,133.83,14.4088]
[1742040951532,13.33676376,133.84,133.83,6.403]
[1742040951829,0.0001,133.84,133.83,6.403]
[1742040957517,0.0001,133.84,133.83,27.21176376]
[1742040957719,0.0001,133.84,133.83,47.52391262]
[1742040963940,0.0001,133.84,133.83,134.89713576]
[1742040964445,0.0001,133.84,133.83,188.2437908]
[1742040964947,0.03,133.86,133.84,18.933972]
[1742040965147,0.03,133.86,133.85,13.33666376]
[1742040965824,0.03,133.86,133.85,20.80766376]
[1742040969235,0.03,133.87,133.85,39.74163576]
[1742040969447,0.03,133.87,133.86,13.33666376]
[1742040972544,0.03,133.93,133.91,7.4677]
[1742040976845,0.03,133.93,133.92,13.33666376]
[1742040977950,0.03,133.93,133.92,20.80376376]
[1742040978136,0.03,133.93,133.92,39.45341262]
[1742040978336,0.03,133.93,133.92,39.59557419]
[1742040980331,0.03,133.93,133.92,41.32453576]
[1742040981042,0.03,133.93,133.92,122.02453576]
[1742040981631,0.03,133.93,133.92,128.38453576]
[1742040986453,0.03,133.93,133.92,128.24237419]
[1742040988054,0.03,133.93,133.92,126.51341262]
[1742040988437,0.03,133.93,133.92,101.50376376]
[1742040988634,0.03,133.93,133.92,100.39666376]
[1742040989562,0.03,133.93,133.9,218.30466376]
[1742040989766,0.03,133.93,133.91,6.38]
[1742040990754,13.33666376,133.92,133.9,203.88]
[1742040991852,13.33666376,133.91,133.87,0.063]
[1742040992065,13.33666376,133.91,133.88,6.38]
[1742040992363,7.4672,133.92,133.87,0.063]
[1742040992364,13.33666376,133.9,133.87,0.063]
[1742040992555,13.33666376,133.88,133.87,0.063]
[1742040992757,14.88356376,133.88,133.87,0.063]
[1742040993764,22.35286376,133.88,133.87,0.063]
[1742040994158,22.6371869,133.88,133.87,0.063]
[1742040995650,15.1678869,133.88,133.87,0.063]
[1742040996076,22.6371869,133.88,133.87,0.063]
[1742040997867,22.35286376,133.88,133.87,0.063]
[1742040998475,14.88356376,133.88,133.87,0.063]
[1742040999369,22.35286376,133.88,133.87,0.063]
[1742040999776,14.88356376,133.88,133.87,0.063]
[1742040999972,13.33666376,133.89,133.87,0.063]
[1742041000276,13.33666376,133.9,133.87,0.063]
[1742041000471,13.33666376,133.9,133.87,6.443]
[1742041000659,0.03,133.88,133.87,6.443]
[1742041000864,13.36666376,133.88,133.87,6.443]
[1742041001754,33.6509869,133.88,133.87,0.063]
[1742041002078,41.1202869,133.88,133.87,0.063]
[1742041003871,60.00163576,133.88,133.84,0.4853611]
[1742041004077,33.6209869,133.85,133.84,0.4853611]
[1742041005561,33.33666376,133.85,133.84,0.4853611]
[1742041006179,40.80766376,133.85,133.84,0.4853611]
[1742041006360,33.33666376,133.85,133.84,0.4853611]
[1742041006763,20.0,133.85,133.84,0.4853611]
[1742041008382,27.471,133.85,133.84,0.4853611]
[1742041008582,40.80766376,133.85,133.84,0.4853611]
[1742041008765,13.33666376,133.85,133.84,0.4853611]
[1742041008971,0.03,133.88,133.84,20.22202486]
[1742041009368,0.03,133.88,133.84,6.8853611]
[1742041009572,33.36666376,133.88,133.84,6.8853611]
[1742041009766,40.83616376,133.88,133.84,6.8853611]
[1742041009967,20.83616376,133.88,133.84,6.8853611]
[1742041010171,0.03,133.88,133.84,14.3568611]
[1742041011375,20.0,133.87,133.84,14.3568611]
[1742041013390,0.03,133.88,133.84,27.69352486]
[1742041013574,20.03,133.88,133.84,27.69352486]
[1742041013780,20.03,133.88,133.84,6.8853611]
[1742041013981,40.83616376,133.88,133.84,6.8853611]
[1742041014179,33.36666376,133.88,133.84,6.8853611]
[1742041014893,40.83606376,133.88,133.84,6.8853611]
[1742041015075,13.33666376,133.86,133.84,0.4853611]
[1742041016387,20.80736376,133.86,133.84,0.4853611]
[1742041017191,13.33666376,133.85,133.84,0.4853611]
[1742041019394,21.0919869,133.85,133.84,0.4853611]
[1742041020272,13.33666376,133.85,133.84,0.4853611]
[1742041020581,20.80726376,133.86,133.84,0.4853611]
[1742041020797,13.33666376,133.85,133.84,0.4853611]
[1742041021181,13.33666376,133.86,133.84,0.4853611]
[1742041021697,20.80726376,133.86,133.84,0.4853611]
[1742041021996,13.33666376,133.85,133.84,0.4853611]
[1742041022594,7.4706,133.86,133.84,0.4853611]
[1742041022803,20.80726376,133.86,133.84,0.4853611]
[1742041023002,7.4706,133.86,133.84,0.4853611]
[1742041023213,0.14216157,133.87,133.84,0.4853611]
[1742041023214,20.0,133.85,133.84,0.4853611]
[1742041024001,13.36666376,133.88,133.84,0.4853611]
[1742041024699,13.33666376,133.87,133.84,0.4853611]
[1742041024895,13.36666376,133.88,133.84,7.9567611]
[1742041025101,0.03,133.88,133.85,6.42]
[1742041025504,0.03,133.88,133.85,13.8909]
[1742041025704,0.03,133.88,133.85,6.42]
[1742041027103,0.03,133.88,133.85,13.891]
[1742041027403,0.03,133.88,133.85,27.22766376]
[1742041029690,0.03,133.88,133.85,13.891]
[1742041030192,0.03,133.88,133.85,27.22766376]
[1742041037707,0.03,133.88,133.84,7.9566611]
[1742041037913,13.36666376,133.88,133.85,6.4]
[1742041040191,0.03,133.88,133.85,6.4]
[1742041044395,13.36666376,133.88,133.85,6.4]
[1742041045112,0.03,133.88,133.85,6.4]
[1742041045833,0.03,133.88,133.85,13.8708]
[1742041046615,0.03,133.88,133.85,6.4]
[1742041047009,0.03,133.88,133.85,13.871]
[1742041048394,0.03,133.88,133.85,27.20766376]
[1742041048598,0.03,133.88,133.86,13.33666376]
[1742041049016,0.03,133.88,133.85,27.27066376]
[1742041051801,0.03,133.88,133.85,13.934]
[1742041055029,0.03,133.88,133.85,6.463]
[1742041055322,0.03,133.88,133.85,13.934]
[1742041055622,0.03,133.88,133.85,27.27066376]
[1742041056524,0.03,133.88,133.85,19.79966376]
[1742041056833,0.03,133.88,133.85,6.463]
[1742041057728,0.03,133.88,133.85,13.9339]
[1742041058626,0.03,133.88,133.85,27.27056376]
[1742041064031,0.03,133.88,133.86,27.30186376]
[1742041064837,0.03,133.88,133.86,13.9652]
[1742041065937,0.03,133.88,133.87,13.33666376]
[1742041067021,0.03,133.88,133.87,20.80656376]
[1742041077823,0.03,133.88,133.86,20.80696376]
[1742041078024,0.03,133.88,133.85,27.27046376]
[1742041081025,0.03,133.88,133.86,13.33666376]
[1742041081248,0.03,133.88,133.87,6.36]
[1742041081543,0.03,133.88,133.87,13.8299]
[1742041081746,0.03,133.88,133.87,27.16656376]
[1742041081945,0.03,133.88,133.87,45.81621262]
[1742041084430,0.03,133.88,133.87,47.34761262]
[1742041089954,0.03,133.93,133.87,66.30673576]
[1742041090137,0.03,133.93,133.91,13.33666376]
[1742041090331,0.03,133.93,133.92,6.38]
[1742041095133,0.03,133.93,133.92,13.8471]
[1742041095353,0.03,133.93,133.92,27.18376376]
[1742041095561,0.03,133.93,133.92,6.38]
[1742041096961,0.03,133.93,133.92,13.8471]
[1742041097464,0.03,133.93,133.92,27.18376376]
[1742041098330,0.03,133.93,133.92,45.83341262]
[1742041109750,0.03,133.93,133.92,46.11773576]
[1742041111458,0.03,133.93,133.92,126.81773576]
[1742041121467,2.25681426,133.97,133.93,18.933972]
[1742041121669,2.25681426,133.97,133.93,99.633972]
[1742041121863,2.25681426,133.97,133.96,31.98631262]
[1742041122677,2.25681426,133.97,133.96,18.64964886]
[1742041122981,2.25681426,133.97,133.96,26.11454886]
[1742041123276,2.25681426,133.97,133.96,39.45121262]
[1742041126075,2.25681426,133.97,133.96,26.11454886]
[1742041128162,2.25681426,133.97,133.96,39.45121262]
[1742041133185,2.25681426,133.97,133.96,7.4649]
[1742041137279,2.25681426,133.97,133.96,39.73553576]
[1742041141496,2.25681426,133.97,133.96,46.07553576]
[1742041141693,2.25681426,133.97,133.96,46.13853576]
[1742041141877,2.25681426,133.97,133.96,47.25780844]
[1742041142073,2.28681426,133.97,133.96,47.25780844]
[1742041143098,2.28681426,133.97,133.96,46.13853576]
[1742041144095,0.050316,134.0,133.99,20.28432314]
[1742041144296,11.74736499,134.09,134.04,20.28432314]
[1742041144488,11.74736499,134.09,134.06,13.33666376]
[1742041144877,25.08402875,134.09,134.05,6.38]
[1742041145080,13.33666376,134.08,134.05,6.38]
[1742041145402,23.03298642,134.1,134.06,18.64964886]
[1742041145777,13.33666376,134.09,134.05,6.38]
[1742041145995,13.33666376,134.07,134.05,6.38]
[1742041146197,13.33666376,134.06,134.05,6.38]
[1742041146388,13.33666376,134.06,134.02,7.4614]
[1742041146587,13.33666376,134.05,134.03,6.4]
[1742041146893,14.98786376,134.09,134.04,13.33666376]
[1742041147128,1.6512,134.09,134.03,6.4]
[1742041147300,13.33666376,134.08,134.03,6.4]
[1742041147506,13.33666376,134.07,134.03,6.4]
[1742041148096,13.33666376,134.06,134.03,13.8609]
[1742041148480,13.33666376,134.07,134.03,13.8609]
[1742041149781,13.33666376,134.08,134.03,13.8609]
[1742041150101,14.98786376,134.09,134.05,7.4599]
[1742041151188,13.33666376,134.08,134.05,7.4599]
[1742041151709,13.33666376,134.06,134.04,7.4603]
[1742041152000,13.33666376,134.05,134.03,13.8608]
[1742041152203,13.33666376,134.06,134.03,13.8608]
[1742041152395,13.33666376,134.05,134.03,13.8608]
[1742041152794,13.33666376,134.06,134.03,13.9208]
[1742041153181,1.6512,134.09,134.03,13.9208]
[1742041153182,1.6512,134.09,134.03,7.4608]
[1742041153387,20.0,134.08,134.03,13.9208]
[1742041153589,13.33666376,134.07,134.03,13.9208]
[1742041155510,13.36666376,134.07,134.03,13.9208]
[1742041156493,0.03,134.07,134.03,13.9208]
[1742041156693,0.03,134.07,134.03,45.90996376]
[1742041156896,0.03,134.07,134.04,31.98631262]
[1742041157889,0.03,134.07,134.05,7.4599]
[1742041159117,0.03,134.07,134.05,20.79656376]
[1742041159895,0.03,134.07,134.05,7.4599]
[1742041160101,13.33666376,134.06,134.03,6.46]
[1742041161116,13.33666376,134.06,134.04,6.5]
[1742041162091,0.03,134.07,134.05,32.27063576]
[1742041162291,0.03,134.07,134.06,33.59611262]
[1742041162497,0.0001,134.07,134.06,112.2936215]
[1742041164511,0.0001,134.07,134.06,119.7529215]
[1742041165307,0.0001,134.07,134.06,420.57550945]
[1742041165514,0.0001,134.07,134.06,433.91217321]
[1742041171821,0.0001,134.07,134.06,121.91217321]
[1742041172619,0.0001,134.07,134.06,128.43217321]
[1742041174321,0.0001,134.07,134.06,129.55054887]
[1742041174905,0.0001,134.07,134.06,441.55054887]
[1742041175105,0.0001,134.07,134.06,440.43217321]
[1742041176806,0.0001,134.07,134.06,637.71217321]
[1742041178215,0.0001,134.07,134.06,325.71217321]
[1742041181227,0.0001,134.07,134.06,637.71217321]
[1742041183530,0.0001,134.07,134.06,631.19217321]
[1742041183733,0.0001,134.07,134.06,637.69217321]
[1742041187139,0.0001,134.07,134.06,325.69217321]
[1742041187839,0.0001,134.07,134.06,319.19217321]
[1742041188038,0.0001,134.07,134.06,325.69217321]
[1742041189929,0.0001,134.07,134.06,637.69217321]
[1742041190536,0.0001,134.07,134.06,325.69217321]
[1742041190924,0.0001,134.07,134.06,325.75517321]
[1742041193525,0.0001,134.07,134.06,637.75517321]
[1742041193734,1.6272,134.16,134.1,18.933972]
[1742041193933,1.6272,134.16,134.13,18.64964886]
[1742041194245,1.6272,134.16,134.11,6.48]
[1742041194246,14.96386376,134.16,134.11,6.48]
[1742041194630,1.6272,134.16,134.12,13.33666376]
[1742041194949,1.6272,134.16,134.11,19.81666376]
[1742041195933,2.5905187,134.19,134.14,13.33666376]
[1742041196133,2.5905187,134.19,134.15,18.64964886]
[1742041196347,13.33666376,134.18,134.16,6.5]
[1742041196725,13.33666376,134.18,134.14,18.64964886]
[1742041196928,23.37928246,134.19,134.15,6.5]
[1742041198147,23.37928246,134.19,134.16,0.28432314]
[1742041198148,15.92718246,134.19,134.16,0.28432314]
[1742041198354,2.5905187,134.19,134.17,31.98631262]
[1742041199350,2.5905187,134.19,134.15,6.5]
[1742041199527,15.92718246,134.19,134.13,18.933972]
[1742041199732,13.33666376,134.17,134.14,6.5]
[1742041201154,20.78996376,134.17,134.15,6.5]
[1742041201855,20.78996376,134.17,134.12,31.98631262]